bitfinex-derivatives/quotes_BTCF0:USTF0_20241120
["timestamp","ask_amount","ask_price","bid_price","bid_amount"]
[1732116461815,0.01353742,94683.0,94678.0,0.052749]
[1732116462016,0.03543618,94682.0,94676.0,0.3608]
[1732116462211,0.03545936,94681.0,94679.0,0.3608]
[1732116462410,0.0419,94698.0,94685.0,0.052745]
[1732116462615,0.00659484,94697.0,94687.0,0.052744]
[1732116462917,0.0419,94698.0,94680.0,0.3608]
[1732116462918,0.00659484,94696.0,94688.0,0.3608]
[1732116463115,0.052743,94689.0,94688.0,0.3608]
[1732116463516,0.0419,94698.0,94688.0,0.3608]
[1732116463718,0.052741,94694.0,94688.0,0.413543]
[1732116463908,0.052741,94693.0,94688.0,0.413543]
[1732116464108,0.052741,94693.0,94689.0,0.052743]
[1732116464316,0.05274,94695.0,94690.0,0.052742]
[1732116464513,0.05274,94694.0,94690.0,0.052742]
[1732116465111,0.05274,94694.0,94688.0,0.3608]
[1732116465112,0.094638,94698.0,94691.0,0.052742]
[1732116465313,0.14607765,94698.0,94692.0,0.052741]
[1732116465519,0.052739,94697.0,94692.0,0.052741]
[1732116465715,0.05274,94696.0,94689.0,0.052743]
[1732116465920,0.05274,94696.0,94690.0,0.052743]
[1732116466212,0.052741,94693.0,94688.0,0.3608]
[1732116466420,0.052741,94694.0,94689.0,0.052743]
[1732116466610,0.052741,94694.0,94690.0,0.052742]
[1732116466811,0.09333965,94698.0,94688.0,0.3608]
[1732116467018,0.05274,94696.0,94691.0,0.052742]
[1732116467919,0.052741,94694.0,94688.0,0.3608]
[1732116468308,0.09333965,94698.0,94688.0,0.3608]
[1732116468511,0.09333965,94698.0,94688.0,0.3158]
[1732116468724,0.052742,94692.0,94688.0,0.3158]
[1732116468917,0.052742,94691.0,94688.0,0.3158]
[1732116469218,0.09333965,94698.0,94688.0,0.3158]
[1732116469425,0.052739,94697.0,94688.0,0.3158]
[1732116469606,0.09333965,94698.0,94688.0,0.3158]
[1732116469607,0.052742,94691.0,94688.0,0.3158]
[1732116470008,0.09333965,94698.0,94688.0,0.3158]
[1732116470907,0.18292356,94689.0,94656.0,0.3608]
[1732116471119,0.54372356,94661.0,94631.0,0.3608]
[1732116471315,0.3608,94653.0,94639.0,0.05523873]
[1732116471511,0.3608,94653.0,94645.0,0.052768]
[1732116471707,0.3608,94661.0,94640.0,0.30212356]
[1732116471919,0.3608,94657.0,94640.0,0.35489356]
[1732116472129,8.334e-05,94656.0,94648.0,0.3608]
[1732116472421,0.052764,94651.0,94648.0,0.3608]
[1732116472617,0.052765,94649.0,94648.0,0.3608]
[1732116473221,0.052765,94649.0,94640.0,0.30212356]
[1732116473222,0.052766,94648.0,94640.0,0.30212356]
[1732116473727,0.052762,94655.0,94640.0,0.1192]
[1732116473911,8.334e-05,94656.0,94640.0,0.1192]
[1732116473912,0.052768,94646.0,94640.0,0.1192]
[1732116474311,0.052768,94645.0,94640.0,0.1192]
[1732116474517,0.052769,94643.0,94640.0,0.1192]
[1732116474822,0.01282856,94642.0,94640.0,0.0808]
[1732116475022,0.052769,94643.0,94640.0,0.0808]
[1732116475421,0.05277,94641.0,94640.0,0.0808]
[1732116475613,0.3608,94651.0,94639.0,0.41731873]
[1732116475812,0.052771,94640.0,94639.0,0.00158493]
[1732116476515,0.06539959,94640.0,94639.0,0.00158493]
[1732116477108,0.06535396,94640.0,94639.0,0.00158493]
[1732116477313,0.052771,94640.0,94639.0,0.00158493]
[1732116477511,0.052781,94621.0,94612.0,0.052786]
[1732116477716,0.11997622,94625.0,94618.0,0.05183811]
[1732116477918,0.0826,94639.0,94609.0,0.3608]
[1732116477919,0.052782,94620.0,94609.0,0.3608]
[1732116478107,0.11997622,94632.0,94609.0,0.3608]
[1732116478512,0.3608,94620.0,94612.0,0.052786]
[1732116478815,0.3608,94625.0,94609.0,0.3608]
[1732116479016,0.052779,94625.0,94609.0,0.4142371]
[1732116479317,0.052779,94625.0,94617.0,0.3608]
[1732116479522,0.3608,94630.0,94622.0,0.11997622]
[1732116479730,0.05300965,94638.0,94626.0,0.3608]
[1732116479919,0.05277,94641.0,94632.0,0.052775]
[1732116480126,0.05277,94641.0,94634.0,0.413574]
[1732116480423,0.05302548,94647.0,94627.0,0.0823]
[1732116480609,0.3608,94649.0,94631.0,0.3608]
[1732116480610,0.11997622,94641.0,94631.0,0.3608]
[1732116480814,0.05386984,94653.0,94639.0,0.3608]
[1732116481017,0.05276,94659.0,94646.0,0.11997622]
[1732116481210,0.05276,94659.0,94647.0,0.4002]
[1732116481419,0.05364819,94661.0,94655.0,0.3608]
[1732116481915,0.11997622,94669.0,94655.0,0.3608]
[1732116482116,0.05276,94659.0,94655.0,0.3608]
[1732116483026,0.052757,94664.0,94655.0,0.3608]
[1732116483222,0.3608,94672.0,94655.0,0.413562]
[1732116483413,0.3608,94672.0,94655.0,0.368562]
[1732116483614,0.05198969,94672.0,94655.0,0.40832461]
[1732116483820,0.052757,94664.0,94655.0,0.36892461]
[1732116484225,0.052761,94657.0,94655.0,0.36892461]
[1732116484422,0.11997622,94669.0,94655.0,0.36892461]
[1732116484624,0.052755,94668.0,94655.0,0.42168661]
[1732116484923,0.05198969,94672.0,94655.0,0.42168661]
[1732116485519,0.11997622,94676.0,94655.0,0.42168661]
[1732116485720,0.052748,94681.0,94655.0,0.73860661]
[1732116485929,0.11997622,94683.0,94655.0,0.68584461]
[1732116486127,0.052749,94679.0,94663.0,0.3608]
[1732116486314,0.052748,94681.0,94665.0,0.052757]
[1732116486518,0.052748,94681.0,94672.0,0.052753]
[1732116486822,0.01350766,94680.0,94666.0,0.0386]
[1732116487124,0.0133915,94679.0,94676.0,0.05275]
[1732116487513,0.0133915,94679.0,94672.0,0.0396]
[1732116488121,0.00011616,94680.0,94677.0,0.05275]
[1732116488517,0.00011616,94680.0,94672.0,0.09164289]
[1732116488726,0.00011616,94680.0,94675.0,0.052751]
[1732116489119,0.01352057,94679.0,94672.0,0.0396]
[1732116489312,0.00011616,94680.0,94672.0,0.0396]
[1732116489818,0.00011616,94680.0,94676.0,0.05275]
[1732116490016,0.01363856,94679.0,94676.0,0.05275]
[1732116490219,0.00011616,94680.0,94671.0,0.3608]
[1732116490220,0.01360808,94678.0,94671.0,0.3608]
[1732116490414,0.01360808,94677.0,94676.0,0.05275]
[1732116490623,0.01360808,94677.0,94671.0,0.3608]
[1732116490824,0.05286416,94680.0,94674.0,0.052751]
[1732116491018,0.11997622,94675.0,94671.0,0.3608]
[1732116491221,0.052752,94674.0,94668.0,0.052755]
[1732116491615,0.11997622,94675.0,94665.0,0.05240163]
[1732116491821,0.052752,94674.0,94667.0,0.052755]
[1732116492029,0.052753,94672.0,94666.0,0.052756]
[1732116492230,0.11997622,94675.0,94666.0,0.052756]
[1732116492430,0.052754,94670.0,94661.0,0.039]
[1732116492614,0.11997622,94675.0,94661.0,0.039]
[1732116492821,0.052753,94671.0,94665.0,0.052756]
[1732116493024,0.17272722,94675.0,94670.0,0.052754]
[1732116493328,0.17272722,94675.0,94661.0,0.039]
[1732116493535,0.3608,94677.0,94672.0,0.052753]
[1732116493923,0.3608,94677.0,94662.0,0.11997622]
[1732116494630,0.00011616,94680.0,94679.0,0.052749]
[1732116497723,0.00158513,94698.0,94691.0,0.052742]
[1732116497923,0.052739,94696.0,94691.0,0.052742]
[1732116498133,0.05274,94695.0,94691.0,0.052742]
[1732116498532,0.05274,94695.0,94685.0,0.042]
[1732116498721,0.01399223,94694.0,94690.0,0.052743]
[1732116498923,0.05274,94695.0,94690.0,0.052742]
[1732116499135,0.01399067,94694.0,94690.0,0.052742]
[1732116499325,0.052741,94694.0,94690.0,0.052742]
[1732116499523,0.00158513,94698.0,94685.0,0.042]
[1732116499721,0.05274,94695.0,94688.0,0.052743]
[1732116499922,0.00158513,94698.0,94688.0,0.052743]
[1732116500119,0.052745,94686.0,94685.0,0.042]
[1732116502628,1.60465245,94689.0,94685.0,0.042]
[1732116502830,1.55190945,94689.0,94685.0,0.042]
[1732116503333,1.55190945,94689.0,94688.0,0.052744]
[1732116503631,0.3608,94702.0,94688.0,0.3608]
[1732116503825,0.01422913,94699.0,94692.0,0.052741]
[1732116504021,0.01422913,94699.0,94688.0,0.3608]
[1732116504022,1.5,94698.0,94688.0,0.3608]
[1732116504229,0.01424278,94697.0,94688.0,0.3608]
[1732116504429,0.01424278,94696.0,94695.0,0.05274]
[1732116504838,0.01424278,94696.0,94688.0,0.3608]
[1732116505022,1.50060001,94698.0,94692.0,0.052741]
[1732116505023,1.55333801,94698.0,94692.0,0.052741]
[1732116505223,0.0143456,94697.0,94692.0,0.052741]
[1732116505427,0.0143456,94696.0,94688.0,0.3608]
[1732116505730,1.50056001,94698.0,94688.0,0.3608]
[1732116505731,0.06721844,94695.0,94688.0,0.413543]
[1732116506034,0.05274,94695.0,94689.0,0.052743]
[1732116506330,1.50056001,94698.0,94688.0,0.3608]
[1732116506537,0.052741,94694.0,94688.0,0.3608]
[1732116506834,0.052741,94694.0,94688.0,0.413544]
[1732116507036,0.052741,94694.0,94689.0,0.052743]
[1732116507238,1.50060001,94698.0,94688.0,0.3608]
[1732116507443,0.052742,94691.0,94688.0,0.3608]
[1732116507731,0.052741,94694.0,94688.0,0.3608]
[1732116507934,1.50064,94698.0,94688.0,0.3608]
[1732116508134,0.01443855,94697.0,94691.0,0.052742]
[1732116508335,0.01443855,94696.0,94693.0,0.052741]
[1732116508531,0.01443855,94695.0,94693.0,0.052741]
[1732116508733,1.553379,94698.0,94693.0,0.052741]
[1732116508734,0.01443855,94694.0,94693.0,0.05274]
[1732116508929,0.01443855,94697.0,94693.0,0.05274]
[1732116509136,0.01443855,94696.0,94695.0,0.05274]
[1732116509435,0.01443855,94696.0,94690.0,0.11997622]
[1732116509436,0.01443855,94697.0,94690.0,0.11997622]
[1732116509737,0.0144834,94696.0,94695.0,0.052739]
[1732116510439,0.0144834,94696.0,94695.0,0.05418911]
[1732116510637,0.00056001,94698.0,94697.0,0.052739]
[1732116510940,0.01451022,94698.0,94697.0,0.48077622]
[1732116511129,0.01451022,94699.0,94697.0,0.48077622]
[1732116511336,0.01451022,94699.0,94698.0,0.00145011]
[1732116511535,0.1,94700.0,94698.0,0.05418811]
[1732116512232,0.1,94700.0,94698.0,0.052738]
[1732116512233,0.01460827,94699.0,94698.0,0.052738]
[1732116512440,0.01315816,94699.0,94698.0,0.052738]
[1732116512940,0.1,94700.0,94697.0,0.48205622]
[1732116513127,0.052738,94698.0,94697.0,0.3608]
[1732116513541,0.052738,94698.0,94697.0,0.3158]
[1732116516035,0.06478441,94698.0,94697.0,0.3158]
[1732116516542,0.0881335,94698.0,94697.0,0.3158]
[1732116516743,0.06478441,94698.0,94697.0,0.3158]
[1732116516945,1.56478441,94698.0,94697.0,0.3158]
[1732116517744,1.58830099,94698.0,94697.0,0.3158]
[1732116518042,1.58830099,94698.0,94679.0,0.3608]
[1732116518043,0.052748,94680.0,94679.0,0.3608]
[1732116518243,0.052751,94675.0,94674.0,0.00011908]
[1732116519149,0.06479741,94675.0,94674.0,0.00011908]
[1732116519342,0.38167741,94675.0,94674.0,0.00011908]
[1732116520146,0.06479741,94675.0,94674.0,0.00011908]
[1732116520551,1.56479741,94675.0,94674.0,0.00011908]
[1732116520849,1.90468539,94675.0,94674.0,0.00011908]
[1732116521045,0.052756,94666.0,94665.0,0.3608]
[1732116521348,0.06480241,94666.0,94646.0,0.3608]
[1732116521647,0.052767,94647.0,94646.0,0.3608]
[1732116522049,1.55288995,94647.0,94646.0,0.3608]
[1732116522240,1.56493636,94647.0,94646.0,0.3608]
[1732116522634,1.88189636,94647.0,94646.0,0.3608]
[1732116522840,1.51216936,94647.0,94646.0,0.3608]
[1732116523047,1.56493636,94647.0,94646.0,0.3608]
[1732116523645,1.51216936,94647.0,94646.0,0.3608]
[1732116523851,1.51216936,94647.0,94646.0,0.413567]
[1732116524444,1.51216936,94647.0,94646.0,0.3608]
[1732116524647,0.01216936,94647.0,94646.0,0.3608]
[1732116525444,0.50187258,94647.0,94646.0,0.3608]
[1732116525751,0.18491258,94647.0,94646.0,0.3608]
[1732116525956,0.50187258,94647.0,94646.0,0.3608]
[1732116526150,0.18491258,94647.0,94646.0,0.3608]
[1732116526349,0.01216936,94647.0,94646.0,0.3608]
[1732116527238,0.01216936,94647.0,94646.0,0.413567]
[1732116528554,0.01216936,94647.0,94646.0,0.3158]
[1732116529350,0.01216936,94647.0,94646.0,0.368567]
[1732116529749,0.01216936,94647.0,94646.0,0.42198084]
[1732116530053,0.01216936,94647.0,94646.0,0.36921384]
[1732116530253,0.06493636,94647.0,94646.0,0.3158]
[1732116530556,0.18491258,94647.0,94646.0,0.3158]
[1732116531452,0.052775,94632.0,94626.0,0.0414]
[1732116531951,0.369775,94632.0,94614.0,0.00011322]
[1732116532153,0.11997622,94623.0,94621.0,0.3608]
[1732116532353,0.11997622,94623.0,94614.0,0.00011322]
[1732116532354,0.01204641,94622.0,94614.0,0.00011322]
[1732116532555,0.052782,94620.0,94614.0,0.00011322]
[1732116533252,0.01204641,94622.0,94614.0,0.00011322]
[1732116533458,0.052784,94617.0,94614.0,0.05393339]
[1732116533658,0.01204641,94618.0,94614.0,0.00011322]
[1732116533851,0.052784,94615.0,94614.0,0.00011322]
[1732116534349,0.369864,94615.0,94614.0,0.00011322]
[1732116534549,0.38191041,94615.0,94614.0,0.00011322]
[1732116536149,0.79515912,94615.0,94614.0,0.00011322]
[1732116536343,0.79515912,94615.0,94599.0,0.3608]
[1732116536344,0.052793,94600.0,94599.0,0.3608]
[1732116536647,0.06483941,94600.0,94599.0,0.3608]
[1732116537256,0.01204641,94600.0,94599.0,0.3608]
[1732116538857,0.052802,94583.0,94578.0,8.831e-05]
[1732116539060,0.052801,94587.0,94578.0,8.831e-05]
[1732116539250,0.052801,94586.0,94578.0,8.831e-05]
[1732116539449,0.3608,94590.0,94580.0,0.11997622]
[1732116539653,0.01204641,94585.0,94580.0,0.11997622]
[1732116540156,0.01204641,94585.0,94584.0,0.052802]
[1732116540456,0.3608,94606.0,94593.0,0.052797]
[1732116540659,0.3608,94606.0,94594.0,0.0398]
[1732116540957,0.3608,94598.0,94594.0,0.0398]
[1732116541161,0.3608,94598.0,94597.0,0.052795]
[1732116542154,0.05205225,94608.0,94589.0,0.11997622]
[1732116542155,0.41359,94605.0,94595.0,0.052795]
[1732116542357,0.01352997,94604.0,94597.0,0.413594]
[1732116542559,0.3608,94605.0,94597.0,0.413594]
[1732116542760,0.3608,94605.0,94597.0,0.3608]
[1732116542950,0.3608,94605.0,94599.0,0.11997622]
[1732116543151,0.00013255,94615.0,94600.0,0.0396]
[1732116543355,0.00013255,94615.0,94613.0,0.11997622]
[1732116543556,0.00013255,94615.0,94601.0,0.052792]
[1732116543861,0.00013255,94615.0,94609.0,0.11997622]
[1732116544056,0.00013255,94615.0,94614.0,0.052785]
[1732116544463,0.00013255,94615.0,94613.0,0.052785]
[1732116545159,0.052786,94613.0,94602.0,0.11997622]
[1732116545359,0.052786,94613.0,94601.0,0.0392]
[1732116545360,0.00013255,94615.0,94601.0,0.0392]
[1732116545665,0.00013255,94615.0,94611.0,0.3608]
[1732116546071,0.01373236,94614.0,94611.0,0.3608]
[1732116546365,0.18649458,94613.0,94611.0,0.3608]
[1732116546550,0.01373236,94612.0,94600.0,0.0396]
[1732116546750,0.052792,94602.0,94600.0,0.0396]
[1732116547257,0.01354855,94601.0,94600.0,0.0396]
[1732116548471,0.00013255,94615.0,94609.0,0.04]
[1732116548763,0.00013255,94615.0,94601.0,0.369912]
[1732116548764,0.0049,94639.0,94615.0,0.052784]
[1732116548961,0.0114,94648.0,94633.0,0.3608]
[1732116548962,0.052774,94635.0,94633.0,0.3608]
[1732116549155,0.14852614,94634.0,94625.0,0.3608]
[1732116549354,0.0285502,94633.0,94625.0,0.3608]
[1732116549560,0.3608,94630.0,94623.0,0.0416]
[1732116549764,0.3608,94624.0,94604.0,0.0393]
[1732116549953,0.3608,94613.0,94604.0,0.0393]
[1732116550157,0.3608,94613.0,94601.0,0.0416]
[1732116550460,0.052789,94607.0,94601.0,0.0416]
[1732116550651,0.3608,94613.0,94601.0,0.0416]
[1732116550856,0.05279,94605.0,94601.0,0.0416]
[1732116551070,0.052792,94602.0,94601.0,0.0416]
[1732116551370,0.052786,94612.0,94588.0,0.0393]
[1732116551558,0.052795,94596.0,94589.0,0.0423]
[1732116551760,0.052792,94602.0,94589.0,0.0423]
[1732116551961,0.135386,94612.0,94589.0,0.0423]
[1732116552157,0.3608,94601.0,94589.0,0.0423]
[1732116552358,0.052798,94590.0,94589.0,0.0423]
[1732116553063,0.05291265,94590.0,94589.0,0.0423]
[1732116553263,0.05291265,94590.0,94574.0,0.0393]
[1732116553264,0.052799,94589.0,94574.0,0.0393]
[1732116553466,0.052805,94579.0,94578.0,0.05202088]
[1732116553663,0.052805,94579.0,94578.0,8.831e-05]
[1732116553859,0.052802,94584.0,94578.0,8.831e-05]
[1732116554168,0.00011465,94590.0,94584.0,0.052802]
[1732116554367,0.00011465,94590.0,94585.0,0.052801]
[1732116554557,0.00011465,94590.0,94583.0,0.18329721]
[1732116554759,0.00011465,94590.0,94589.0,0.052799]
[1732116556062,0.00011465,94590.0,94583.0,0.18329721]
[1732116556364,0.00011465,94590.0,94579.0,0.3608]
[1732116556575,0.052802,94584.0,94579.0,0.3608]
[1732116556771,0.00011465,94590.0,94579.0,0.3608]
[1732116556962,0.052799,94589.0,94579.0,0.3608]
[1732116557267,0.00011465,94590.0,94579.0,0.3608]
[1732116557768,0.052805,94579.0,94578.0,8.831e-05]
[1732116558158,1.552805,94579.0,94578.0,8.831e-05]
[1732116558558,0.05281,94571.0,94569.0,0.31588831]
[1732116558765,0.05281,94571.0,94569.0,0.36930687]
[1732116560172,1.5,94583.0,94569.0,0.36930687]
[1732116560359,0.052806,94577.0,94569.0,0.36930687]
[1732116560560,0.3608,94582.0,94569.0,0.36930687]
[1732116560762,0.05281,94570.0,94569.0,0.36930687]
[1732116562570,0.06482668,94570.0,94569.0,0.36930687]
[1732116562965,0.05281,94570.0,94569.0,0.36930687]
[1732116563274,0.73085,94570.0,94569.0,0.05341856]
[1732116563480,0.052814,94562.0,94548.0,0.3608]
[1732116563673,0.59691121,94562.0,94548.0,0.3608]
[1732116563975,0.413614,94562.0,94548.0,0.3608]
[1732116564375,0.42536799,94562.0,94548.0,0.3608]
[1732116564875,1.92536799,94562.0,94548.0,0.413622]
[1732116565066,1.51175399,94562.0,94548.0,0.3608]
[1732116565371,0.052812,94566.0,94561.0,0.260525]
[1732116565771,1.91372821,94570.0,94565.0,0.052812]
[1732116565974,1.91372821,94570.0,94561.0,0.20771]
[1732116565975,0.3608,94570.0,94561.0,0.20771]
[1732116566169,0.41361,94570.0,94561.0,0.20771]
[1732116566368,0.3608,94570.0,94561.0,0.20771]
[1732116566571,0.052812,94567.0,94561.0,0.20771]
[1732116566774,0.052814,94562.0,94561.0,0.20771]
[1732116568071,0.413614,94562.0,94561.0,0.20771]
[1732116568467,0.413614,94562.0,94561.0,0.260525]
[1732116568468,0.3608,94562.0,94561.0,0.260525]
[1732116568669,0.413614,94562.0,94561.0,0.20771]
[1732116569375,0.42542475,94562.0,94561.0,0.20771]
[1732116569578,0.413614,94562.0,94561.0,0.20771]
[1732116570873,0.41372255,94562.0,94561.0,0.20771]
[1732116571074,0.45192255,94562.0,94561.0,0.20771]
[1732116572277,1.95192255,94562.0,94561.0,0.20771]
[1732116573278,1.95192255,94562.0,94561.0,0.04166681]
[1732116573478,1.95192255,94562.0,94538.0,0.35757809]
[1732116573479,1.89910855,94562.0,94538.0,0.35757809]
[1732116573665,1.89910855,94562.0,94524.0,0.3608]
[1732116573666,0.052831,94531.0,94524.0,0.3608]
[1732116573871,0.052832,94530.0,94529.0,0.052832]
[1732116574075,0.052826,94541.0,94524.0,0.41355579]
[1732116574279,0.052834,94527.0,94525.0,0.052835]
[1732116574468,0.3608,94535.0,94524.0,0.41231579]
[1732116574674,0.052834,94527.0,94524.0,0.41231579]
[1732116574871,0.052831,94532.0,94524.0,0.41231579]
[1732116575076,0.3608,94535.0,94524.0,0.41231579]
[1732116575280,0.3608,94549.0,94524.0,0.41231579]
[1732116575281,0.3608,94549.0,94532.0,0.3608]
[1732116575579,0.3608,94549.0,94533.0,0.05283]
[1732116575786,0.3608,94549.0,94537.0,0.052827]
[1732116575972,0.3608,94549.0,94532.0,0.3608]
[1732116576479,0.3608,94549.0,94537.0,0.052828]
[1732116576671,0.052824,94544.0,94537.0,0.052828]
[1732116577081,0.052824,94544.0,94532.0,0.3608]
[1732116577366,0.3608,94549.0,94532.0,0.3608]
[1732116577367,0.05283,94533.0,94532.0,0.3608]
[1732116577879,0.12019847,94541.0,94532.0,0.3608]
[1732116578181,0.05283,94533.0,94532.0,0.3608]
[1732116578389,0.052828,94537.0,94532.0,0.3608]
[1732116578683,0.052823,94547.0,94532.0,0.413631]
[1732116578876,0.052823,94547.0,94532.0,0.3608]
[1732116578877,0.052828,94537.0,94532.0,0.3608]
[1732116579079,1.5,94547.0,94532.0,0.3608]
[1732116579282,0.052824,94544.0,94537.0,0.052827]
[1732116579477,0.052823,94546.0,94540.0,0.052826]
[1732116579673,0.052824,94545.0,94541.0,0.0399]
[1732116579868,0.3608,94549.0,94548.0,0.052822]
[1732116580377,0.052817,94558.0,94552.0,0.05282]
[1732116580677,0.05292255,94562.0,94554.0,0.052818]
[1732116580984,0.05292255,94562.0,94555.0,0.052818]
[1732116581685,0.00010855,94562.0,94559.0,0.052815]
[1732116581880,0.00010855,94562.0,94554.0,0.12019847]
[1732116581881,0.00010855,94562.0,94560.0,0.092715]
[1732116582584,0.00010855,94562.0,94560.0,0.0399]
[1732116584186,0.052815,94561.0,94560.0,0.0399]
[1732116584388,0.00010855,94562.0,94560.0,0.0399]
[1732116584785,0.052805,94578.0,94572.0,0.052808]
[1732116585080,0.18345547,94596.0,94561.0,0.67804]
[1732116585081,0.052797,94591.0,94573.0,0.398]
[1732116585278,0.00382,94594.0,94583.0,0.052801]
[1732116585589,0.00382,94594.0,94585.0,0.0528]
[1732116585590,1.552796,94593.0,94585.0,0.0528]
[1732116585774,0.00012145,94592.0,94585.0,0.0528]
[1732116586087,0.052797,94591.0,94580.0,0.052803]
[1732116586281,0.052798,94589.0,94580.0,0.052803]
[1732116587186,0.00012145,94592.0,94577.0,0.3608]
[1732116587488,0.00012145,94592.0,94584.0,0.052801]
[1732116587883,0.00012145,94592.0,94585.0,0.0406]
[1732116588080,0.00012145,94592.0,94589.0,0.052797]
[1732116588385,0.052803,94578.0,94577.0,0.3608]
[1732116588687,0.052803,94578.0,94577.0,0.3158]
[1732116589882,0.052802,94581.0,94577.0,0.3158]
[1732116590486,0.052803,94578.0,94577.0,0.3158]
[1732116594093,0.10539691,94578.0,94577.0,0.3158]
[1732116595083,0.052803,94578.0,94577.0,0.3158]
[1732116595583,1.5,94591.0,94577.0,0.3158]
[1732116595985,0.00012145,94592.0,94577.0,0.3158]
[1732116595986,0.00012145,94592.0,94583.0,0.18345547]
[1732116596193,0.00012145,94592.0,94586.0,0.052798]
[1732116596395,0.00012145,94592.0,94588.0,0.052797]
[1732116596691,0.00012145,94592.0,94591.0,0.052796]
[1732116597081,0.00012145,94592.0,94587.0,0.090798]
[1732116597280,0.00012145,94592.0,94589.0,0.052796]
[1732116598686,0.00012145,94592.0,94587.0,0.09156542]
[1732116598888,0.00012145,94592.0,94591.0,0.052796]
[1732116599088,0.00012145,94592.0,94587.0,0.09156542]
[1732116599694,0.052799,94586.0,94585.0,0.3608]
[1732116600997,0.052799,94586.0,94574.0,0.0382]
[1732116600998,0.3608,94586.0,94574.0,0.0382]
[1732116601195,0.3608,94586.0,94565.0,0.3608]
[1732116601196,0.052805,94574.0,94565.0,0.3608]
[1732116601704,0.3608,94586.0,94565.0,0.54425547]
[1732116601993,0.10615135,94592.0,94565.0,0.54425547]
[1732116601994,0.3608,94582.0,94574.0,0.18345547]
[1732116602197,0.05335535,94592.0,94577.0,0.052803]
[1732116602400,0.052796,94591.0,94583.0,0.0528]
[1732116602599,0.00012145,94592.0,94583.0,0.18345547]
[1732116602796,0.00012145,94592.0,94591.0,0.052796]
[1732116603092,0.00012145,94592.0,94591.0,0.413596]
[1732116603301,0.052785,94611.0,94591.0,0.413596]
[1732116603302,0.3657,94621.0,94591.0,0.86141547]
[1732116603597,0.3608,94613.0,94599.0,0.3608]
[1732116603803,0.052786,94608.0,94602.0,0.052789]
[1732116604101,1.8608,94613.0,94602.0,0.12003893]
[1732116604287,0.052789,94603.0,94602.0,0.12003893]
[1732116604493,0.00010226,94612.0,94599.0,0.3608]
[1732116604999,0.05279,94602.0,94599.0,0.3608]
[1732116605295,0.052791,94600.0,94599.0,0.3608]
[1732116605786,0.23681527,94608.0,94590.0,0.3608]
[1732116605787,0.052796,94591.0,94590.0,0.3608]
[1732116606396,0.052801,94582.0,94581.0,0.3608]
[1732116606601,0.3608,94594.0,94581.0,0.3608]
[1732116606602,0.3608,94594.0,94583.0,0.0528]
[1732116606899,0.3608,94604.0,94594.0,0.052794]
[1732116606900,0.05279,94603.0,94594.0,0.052794]
[1732116607193,0.3608,94604.0,94595.0,0.04]
[1732116607582,0.052793,94596.0,94595.0,0.04]
[1732116608188,0.052791,94601.0,94595.0,0.04]
[1732116608395,0.3608,94604.0,94599.0,0.18333996]
[1732116608703,0.052784,94613.0,94605.0,0.052788]
[1732116608898,0.05279,94601.0,94600.0,0.3994]
[1732116609207,0.05279,94601.0,94600.0,0.3608]
[1732116609790,0.052796,94591.0,94582.0,0.0401]
[1732116609991,0.052796,94591.0,94571.0,0.18333996]
[1732116609992,0.3608,94591.0,94571.0,0.3608]
[1732116610194,0.3608,94591.0,94570.0,0.00124]
[1732116610195,0.3608,94581.0,94570.0,0.00124]
[1732116610402,0.052807,94570.0,94560.0,0.36204]
[1732116610696,0.052807,94570.0,94560.0,0.3608]
[1732116611108,0.052805,94575.0,94567.0,0.052809]
[1732116611398,0.00060001,94579.0,94571.0,0.052807]
[1732116611600,0.00010226,94580.0,94573.0,0.052806]
[1732116611797,0.00010226,94580.0,94579.0,0.18333996]
[1732116612099,0.00010226,94580.0,94579.0,0.23614196]
[1732116612288,0.0049,94609.0,94579.0,1.18982369]
[1732116612501,1.5,94613.0,94594.0,0.3608]
[1732116612694,1.5,94613.0,94607.0,0.3608]
[1732116612901,0.052779,94621.0,94610.0,0.052785]
[1732116613199,0.052779,94620.0,94610.0,0.052785]
[1732116613501,0.3608,94620.0,94605.0,0.18333996]
[1732116613695,0.3608,94620.0,94598.0,0.0406]
[1732116613696,0.052768,94635.0,94619.0,0.413577]
[1732116613899,0.01286748,94634.0,94621.0,0.18333996]
[1732116614095,0.05405592,94635.0,94632.0,0.18333996]
[1732116614296,0.00349,94640.0,94634.0,0.052769]
[1732116614601,0.056255,94640.0,94629.0,0.052771]
[1732116614800,0.052766,94639.0,94631.0,0.05277]
[1732116615000,0.00349,94640.0,94632.0,0.05277]
[1732116615207,0.052767,94637.0,94628.0,0.3608]
[1732116615406,0.00349,94640.0,94632.0,0.05277]
[1732116615699,0.00349,94640.0,94633.0,0.052769]
[1732116616400,0.00349,94640.0,94628.0,0.3608]
[1732116616608,0.00349,94640.0,94639.0,0.18333996]
[1732116616794,0.18333996,94669.0,94639.0,0.18333996]
[1732116616795,0.052754,94660.0,94639.0,0.18333996]
[1732116617000,0.3608,94664.0,94650.0,0.3608]
[1732116617199,0.3608,94664.0,94652.0,0.052758]
[1732116617200,0.0665323,94663.0,94652.0,0.052758]
[1732116617396,0.052753,94663.0,94653.0,0.052758]
[1732116617902,0.41330407,94664.0,94656.0,0.052756]
[1732116618110,0.06656594,94663.0,94651.0,0.0384]
[1732116618311,0.052755,94658.0,94651.0,0.0384]
[1732116618510,0.052755,94658.0,94650.0,0.3542]
[1732116618900,0.3608,94672.0,94656.0,0.18333996]
[1732116619095,0.03592075,94671.0,94662.0,0.052758]
[1732116619302,0.03592075,94670.0,94656.0,0.18333996]
[1732116619497,0.3608,94672.0,94656.0,0.18333996]
[1732116619498,0.01381567,94669.0,94656.0,0.18333996]
[1732116619700,0.05215601,94676.0,94656.0,0.18333996]
[1732116619701,0.01381567,94668.0,94667.0,0.3608]
[1732116620410,0.01381567,94668.0,94667.0,0.052755]
[1732116620411,0.01416499,94668.0,94667.0,0.052755]
[1732116621008,0.01412655,94668.0,94667.0,0.052755]
[1732116621902,0.01412655,94668.0,94666.0,0.052756]